bitfinex/quotes_ETHUSD_20250706
["timestamp","ask_amount","ask_price","bid_price","bid_amount"]
[1751775419236,28.07557082,2520.0,2519.9,0.001]
[1751775436253,28.07398349,2520.0,2519.9,0.001]
[1751775439286,33.57712609,2520.0,2519.9,0.001]
[1751775447219,28.07398349,2520.0,2519.9,0.001]
[1751775448415,33.57712609,2520.0,2519.9,0.001]
[1751775464103,13.96841144,2519.9,2519.8,0.001]
[1751775464405,13.96841144,2519.9,2519.0,0.75]
[1751775464406,3.96961317,2519.2,2519.0,0.75]
[1751775464619,13.4651426,2519.1,2519.0,0.75]
[1751775466439,17.4348143,2519.1,2519.0,0.75]
[1751775469937,13.4651426,2519.1,2519.0,0.75]
[1751775473241,13.4651426,2519.1,2519.0,0.751]
[1751775474113,17.4348143,2519.1,2519.0,0.751]
[1751775474312,13.4651426,2519.1,2519.0,0.751]
[1751775480050,17.4348143,2519.1,2519.0,0.001]
[1751775483641,17.99338856,2519.1,2519.0,0.001]
[1751775490280,12.49024596,2519.1,2519.0,0.001]
[1751775490779,22.49024596,2519.1,2519.0,0.001]
[1751775491179,23.04024596,2519.1,2519.0,0.001]
[1751775495376,24.41724596,2519.1,2519.0,0.001]
[1751775495578,29.92038856,2519.1,2519.0,0.001]
[1751775497756,31.99274462,2519.1,2519.0,0.001]
[1751775501565,22.10374462,2519.1,2519.0,0.001]
[1751775501765,31.99374462,2519.1,2519.0,0.001]
[1751775517794,29.9281708,2519.1,2519.0,0.001]
[1751775523916,30.4781708,2519.1,2519.0,0.001]
[1751775538299,20.5881708,2519.1,2519.0,0.001]
[1751775538499,29.9281708,2519.1,2519.0,0.001]
[1751775538904,21.9356717,2519.1,2519.0,0.82]
[1751775539144,17.968,2519.1,2519.0,0.82]
[1751775539505,21.9376717,2519.1,2519.0,0.82]
[1751775539734,10.0,2519.1,2519.0,0.82]
[1751775539937,17.968,2519.1,2519.0,0.82]
[1751775540146,3.96905269,2519.5,2519.1,0.819]
[1751775540352,10.1984,2519.3,2519.1,0.819]
[1751775540640,17.976,2519.2,2519.1,0.819]
[1751775543750,17.976,2519.2,2519.1,4.7886717]
[1751775543932,10.002,2519.8,2519.3,0.7781]
[1751775544136,0.1984,2519.5,2519.3,0.7781]
[1751775544448,17.976,2519.4,2519.3,0.7781]
[1751775544609,10.0,2519.4,2519.3,0.7781]
[1751775544808,17.977,2519.4,2519.3,0.7781]
[1751775545052,10.0,2519.4,2519.3,0.7781]
[1751775545250,17.977,2519.4,2519.3,4.74745656]
[1751775545424,17.976,2519.4,2519.3,4.74745656]
[1751775546944,0.1984,2519.5,2519.3,0.7781]
[1751775547114,7.976,2519.4,2519.3,0.7781]
[1751775552346,8.1724,2519.5,2519.3,0.7781]
[1751775555546,18.1724,2519.5,2519.3,0.7781]
[1751775562239,18.1724,2519.5,2519.3,0.7791]
[1751775565070,18.1724,2519.5,2519.3,4.74844281]
[1751775565570,7.97,2519.4,2519.3,4.74844281]
[1751775566583,10.1984,2519.5,2519.3,4.74844281]
[1751775566879,18.1684,2519.5,2519.3,4.74844281]
[1751775568076,18.1684,2519.5,2519.3,0.7791]
[1751775575361,22.13751359,2519.5,2519.3,0.001]
[1751775575668,2.76432277,2519.4,2519.3,0.001]
[1751775575870,17.97,2519.5,2519.3,0.001]
[1751775577451,5.50571411,2519.6,2519.3,0.001]
[1751775577452,0.1984,2519.6,2519.5,3.96894441]
[1751775577686,0.2004,2519.8,2519.4,0.7534]
[1751775577895,7.968,2519.7,2519.6,4.72225978]
[1751775578385,7.968,2519.7,2519.6,0.7534]
[1751775580886,8.1664,2519.7,2519.6,0.7534]
[1751775585163,8.1664,2519.7,2519.4,4.7880722]
[1751775585795,8.1664,2519.7,2519.4,0.8189]
[1751775585979,12.13514239,2519.7,2519.4,0.8189]
[1751775586189,8.1664,2519.7,2519.4,0.8189]
[1751775586813,12.13514444,2519.7,2519.4,0.8189]
[1751775586976,13.74570554,2519.7,2519.4,0.8189]
[1751775589310,12.13514444,2519.7,2519.4,0.8189]
[1751775589605,8.1664,2519.7,2519.4,0.8189]
[1751775591823,12.135133,2519.7,2519.4,0.8189]
[1751775593983,8.1664,2519.7,2519.4,0.8189]
[1751775595392,12.13515966,2519.7,2519.4,0.8189]
[1751775596720,8.1664,2519.7,2519.4,0.8189]
[1751775599019,12.13515927,2519.7,2519.4,0.8189]
[1751775600219,8.1664,2519.7,2519.4,0.8189]
[1751775601022,12.13512861,2519.7,2519.4,0.8189]
[1751775606492,8.1664,2519.7,2519.4,0.8189]
[1751775608312,12.13513454,2519.7,2519.4,0.8199]
[1751775615229,8.1664,2519.7,2519.4,0.8199]
[1751775616023,12.13512743,2519.7,2519.4,0.8199]
[1751775616528,8.1664,2519.7,2519.4,0.8199]
[1751775617903,8.1664,2519.7,2519.4,0.001]
[1751775619725,12.13513129,2519.7,2519.4,0.001]
[1751775621433,8.1664,2519.7,2519.4,0.001]
[1751775622307,12.13524987,2519.7,2519.4,0.001]
[1751775623436,8.1664,2519.7,2519.4,0.001]
[1751775629540,12.13513489,2519.7,2519.4,0.001]
[1751775629743,1.21371349,2519.6,2519.4,0.001]
[1751775630042,7.964,2519.5,2519.4,0.001]
[1751775646957,11.93304147,2519.5,2519.4,0.001]
[1751775647335,12.13144147,2519.5,2519.4,0.001]
[1751775647859,27.63701914,2519.5,2519.4,0.001]
[1751775651339,22.13144147,2519.5,2519.4,0.001]
[1751775651564,25.29203443,2519.5,2519.4,0.001]
[1751775654338,30.7976121,2519.5,2519.4,0.001]
[1751775664865,31.3476121,2519.5,2519.4,0.001]
[1751775673050,31.55470025,2519.5,2519.4,0.001]
[1751775676089,14.51919901,2519.4,2519.3,0.001]
[1751775676258,15.41884164,2519.4,2519.3,0.001]
[1751775676578,20.92441931,2519.4,2519.3,0.001]
[1751775676984,15.41884164,2519.4,2519.3,0.001]
[1751775681170,20.92441931,2519.4,2519.3,0.001]
[1751775682864,26.42999698,2519.4,2519.3,0.001]
[1751775683064,19.47524937,2519.1,2519.0,0.001]
[1751775683366,27.44124937,2519.1,2519.0,0.001]
[1751775685391,27.44124937,2519.1,2519.0,0.001]
[1751775687162,27.7429651,2519.1,2519.0,0.001]
[1751775693168,14.71822929,2519.0,2518.9,1e-08]
[1751775693368,14.71822929,2519.0,2518.4,0.0431287]
[1751775693369,13.97061743,2518.5,2518.4,0.0431287]
[1751775693574,27.4441951,2518.5,2518.4,0.0431287]
[1751775700609,27.4441951,2518.5,2518.4,0.8459287]
[1751775702306,10.1984,2518.5,2518.4,0.8459287]
[1751775702507,18.1664,2518.5,2518.4,0.8459287]
[1751775707510,18.1674,2518.5,2518.4,0.8459287]
[1751775711851,22.13801743,2518.5,2518.4,0.8459287]
[1751775713436,18.1674,2518.5,2518.4,0.8459287]
[1751775713798,22.13801743,2518.5,2518.4,0.8459287]
[1751775715506,22.13801743,2518.5,2518.4,0.0431287]
[1751775716938,24.74886588,2518.5,2518.4,0.0431287]
[1751775717125,32.3252105,2518.5,2518.4,0.0431287]
[1751775719936,32.3252105,2518.5,2518.4,0.0441287]
[1751775722634,32.8752105,2518.5,2518.4,0.0441287]
[1751775732421,24.9062105,2518.5,2518.4,0.0441287]
[1751775732628,34.8042105,2518.5,2518.4,0.0441287]
[1751775733443,34.2542105,2518.5,2518.4,0.0441287]
[1751775737948,34.8042105,2518.5,2518.4,0.0441287]
[1751775744970,24.9062105,2518.5,2518.4,0.0441287]
[1751775745143,32.8792105,2518.5,2518.4,0.0441287]
[1751775751057,32.8792105,2518.5,2518.4,0.00074213]
[1751775756187,34.2562105,2518.5,2518.4,0.00074213]
[1751775756389,31.64536205,2518.5,2518.4,0.00074213]
[1751775766224,31.64736205,2518.5,2518.4,0.00074213]
[1751775769041,4.52077509,2518.4,2518.0,0.001]
[1751775769200,22.09759278,2518.1,2518.0,0.001]
[1751775769397,33.27218574,2518.1,2518.0,0.001]
[1751775770634,30.11159278,2518.1,2518.0,0.001]
[1751775777839,29.56159278,2518.1,2518.0,0.001]
[1751775778017,21.54759278,2518.1,2518.0,0.001]
[1751775778221,31.48859278,2518.1,2518.0,0.001]
[1751775795873,29.42727848,2518.1,2518.0,0.001]
[1751775796373,32.76711537,2518.1,2518.0,0.001]
[1751775800002,29.42727848,2518.1,2518.0,0.001]
[1751775801775,31.49361548,2518.1,2518.0,0.001]
[1751775808678,32.04361548,2518.1,2518.0,0.001]
[1751775814281,32.03161548,2518.1,2518.0,0.001]
[1751775817381,22.10261548,2518.1,2518.0,0.001]
[1751775817568,34.65018607,2518.1,2518.0,0.001]
[1751775818555,17.12881875,2518.1,2518.0,0.001]
[1751775818769,32.04161548,2518.1,2518.0,0.001]
[1751775824086,32.04161548,2518.1,2518.0,1.402e-05]
[1751775830198,14.16980587,2518.0,2517.9,0.0441287]
[1751775830502,22.16380587,2518.0,2517.9,0.0441287]
[1751775833869,27.67956002,2518.0,2517.9,0.0441287]
[1751775835790,29.74780557,2518.0,2517.9,0.0441287]
[1751775842417,21.75380557,2518.0,2517.9,0.0441287]
[1751775842614,29.74380557,2518.0,2517.9,0.0441287]
[1751775847826,30.29380557,2518.0,2517.9,0.0441287]
[1751775851332,30.29380557,2518.0,2517.9,0.00053135]
[1751775851637,33.91461094,2518.0,2517.9,0.00053135]
[1751775852438,33.91461094,2518.0,2517.7,0.02]
[1751775852439,13.97172134,2517.8,2517.7,0.02]
[1751775852607,21.96172134,2517.8,2517.7,0.02]
[1751775855038,29.54572104,2517.8,2517.7,0.02]
[1751775856035,27.47684501,2517.8,2517.7,0.02]
[1751775866830,27.91627523,2517.8,2517.7,0.02]
[1751775874145,33.9813989,2517.8,2517.7,0.02]
[1751775874748,3.97203686,2517.6,2517.5,0.000266]
[1751775874950,32.9882842,2517.6,2517.5,0.000266]
[1751775876736,34.9222842,2517.6,2517.5,0.000266]
[1751775876943,38.54308957,2517.6,2517.5,0.000266]
[1751775883272,14.72059463,2517.5,2517.3,0.02]
[1751775883463,24.05012367,2517.4,2517.3,0.02]
[1751775883665,28.02247609,2517.4,2517.3,0.02]
[1751775883866,28.46190631,2517.4,2517.3,0.02]
[1751775885272,28.46190631,2517.4,2517.3,1e-08]
[1751775885570,3.97285223,2517.1,2516.7,0.8362]
[1751775885765,21.48515868,2517.0,2516.7,0.02]
[1751775886159,32.03515868,2517.0,2516.7,0.02]
[1751775886471,34.58095977,2517.0,2516.7,0.02]
[1751775894947,24.65895977,2517.0,2516.7,0.02]
[1751775895147,34.58295977,2517.0,2516.7,0.02]
[1751775896458,21.56315868,2517.0,2516.8,0.7779]
[1751775896656,31.48715868,2517.0,2516.8,0.7779]
[1751775899370,31.48715868,2517.0,2516.8,0.02]
[1751775901259,31.48715868,2517.0,2516.9,0.0441287]
[1751775907502,32.03715868,2517.0,2516.9,0.0441287]
[1751775907866,29.96682326,2517.0,2516.9,0.0441287]
[1751775908067,33.36079081,2517.0,2516.9,0.0441287]
[1751775912519,38.88063036,2517.0,2516.9,0.0441287]
[1751775913922,35.43201606,2517.0,2516.9,0.0441287]
[1751775915180,35.43201606,2517.0,2516.9,0.00042623]
[1751775921136,14.72154156,2516.9,2516.8,0.02]
[1751775921437,23.3748096,2516.9,2516.8,0.02]
[1751775935766,34.41610896,2516.9,2516.8,0.02]
[1751775936252,34.41610896,2516.9,2516.8,0.00019319]
[1751775936457,34.62340729,2516.9,2516.8,0.00019319]
[1751775937264,14.52329942,2516.8,2516.7,1e-08]
[1751775937445,17.91726697,2516.8,2516.7,1e-08]
[1751775939655,4.52377309,2516.5,2516.4,0.0631287]
[1751775939842,28.02942277,2516.5,2516.4,0.0631287]
[1751775946270,28.02942277,2516.5,2516.4,0.00046818]
[1751775955189,20.04442277,2516.5,2516.4,0.00046818]
[1751775955343,30.62969081,2516.5,2516.4,0.00046818]
[1751775956546,30.83702229,2516.5,2516.4,0.00046818]
[1751775959383,30.83702229,2516.5,2516.0,0.7876]
[1751775959384,3.97440483,2516.1,2516.0,0.7876]
[1751775959546,27.48005451,2516.1,2516.0,0.7876]
[1751775960445,27.48005451,2516.1,2516.0,0.001]
[1751775961063,30.6254877,2516.1,2516.0,0.001]
[1751775962072,31.1754877,2516.1,2516.0,0.001]
[1751775964259,36.69613738,2516.1,2516.0,0.001]
[1751775968275,36.69613738,2516.1,2516.0,3.8e-06]
[1751775973888,33.25129512,2516.1,2516.0,3.8e-06]
[1751775974522,14.17296279,2516.0,2515.8,0.02]
[1751775974830,23.07376519,2516.0,2515.8,0.02]
[1751775979121,23.28113446,2516.0,2515.8,0.02]
[1751775980327,23.28113446,2516.0,2515.9,3.602e-05]
[1751775982026,23.28113446,2516.0,2515.8,0.02]
[1751775982027,13.97590842,2515.2,2514.9,0.0431287]
[1751775982211,7.986,2515.1,2514.9,0.0431287]
[1751775984497,8.1844,2515.1,2514.9,0.0431287]
[1751775984931,22.16038505,2515.1,2515.0,0.7618]
[1751775990536,22.16038505,2515.1,2515.0,0.7628]
[1751775991339,18.1844,2515.1,2515.0,0.7628]
[1751775991524,10.1984,2515.1,2515.0,0.7628]
[1751775991909,18.1874,2515.1,2515.0,0.7628]
[1751775994335,18.1874,2515.1,2515.0,1.24102132]
[1751775994535,17.989,2515.1,2515.0,1.24102132]
[1751775995039,10.0,2515.1,2515.0,5.21716446]
[1751775995213,17.989,2515.1,2515.0,5.21716446]
[1751775995924,17.989,2515.1,2515.0,1.24102132]
[1751775998543,17.989,2515.1,2515.0,0.7628]
[1751776007419,17.987,2515.1,2515.0,0.7628]
[1751776009161,10.0,2515.1,2515.0,0.7628]
[1751776009368,17.987,2515.1,2515.0,0.7628]
[1751776012443,10.0,2515.1,2515.0,0.7628]
[1751776012748,17.987,2515.1,2515.0,0.7628]
[1751776019195,10.0,2515.1,2515.0,0.7628]
[1751776019475,17.987,2515.1,2515.0,0.7628]
[1751776020149,0.1984,2515.3,2515.2,0.7502]
[1751776020367,18.1854,2515.3,2515.2,0.7502]
[1751776023377,10.1984,2515.3,2515.2,0.7502]
[1751776023581,8.1854,2515.3,2515.2,0.7502]
[1751776029180,7.987,2515.3,2515.2,0.7502]
[1751776030577,0.002,2515.4,2515.2,0.7502]
[1751776030785,7.987,2515.3,2515.2,4.72602697]
[1751776031083,7.987,2515.3,2515.2,0.7502]
[1751776033394,0.002,2515.4,2515.2,0.7502]
[1751776033563,7.987,2515.3,2515.2,0.7502]
[1751776038299,0.002,2515.4,2515.2,0.7502]
[1751776038507,7.987,2515.3,2515.2,0.7502]
[1751776039700,7.987,2515.3,2515.0,4.98145281]
[1751776041002,7.987,2515.3,2515.1,3.97597234]
[1751776042691,7.987,2515.2,2515.1,3.97597234]
[1751776044700,7.987,2515.2,2515.0,4.98146539]
[1751776046426,7.987,2515.2,2515.0,1.0054]
[1751776046600,7.987,2515.2,2515.0,4.98152467]
[1751776050299,7.987,2515.2,2515.0,1.0054]
[1751776059824,10.0,2515.3,2515.0,4.98150568]
[1751776060028,7.986,2515.1,2515.0,4.98150568]
[1751776062132,7.986,2515.1,2515.0,1.0054]
[1751776062494,7.986,2515.1,2515.0,4.98154314]
[1751776062694,7.986,2515.1,2515.0,1.0054]
[1751776063321,7.986,2515.1,2515.0,4.98154314]
[1751776071095,10.002,2515.4,2515.1,3.97598495]
[1751776071434,7.986,2515.3,2515.1,4.0157448]
[1751776072404,7.986,2515.3,2515.1,3.97598495]
[1751776079446,0.002,2515.4,2515.1,3.97598495]
[1751776079645,7.986,2515.2,2515.1,3.97598495]
[1751776082542,7.986,2515.2,2515.0,4.17543486]
[1751776083118,0.7886,2515.4,2515.0,4.17543486]
[1751776083427,7.986,2515.3,2515.1,3.97595908]
[1751776084350,7.986,2515.3,2515.0,4.17546029]
[1751776091252,7.986,2515.3,2515.0,0.1994]
[1751776091753,13.51060654,2515.3,2515.0,0.1994]
[1751776091953,20.33370493,2515.3,2515.0,0.1994]
[1751776092156,5.52460654,2515.1,2515.0,0.001]
[1751776094557,4.76243706,2515.2,2515.0,0.001]
[1751776097370,0.7866,2515.2,2515.0,0.001]
[1751776098467,7.986,2515.1,2515.0,0.001]
[1751776105763,0.1984,2515.3,2515.1,4.73591096]
[1751776105956,7.986,2515.2,2515.1,4.73591096]
[1751776107867,7.986,2515.2,2515.1,0.76]
[1751776110066,7.986,2515.2,2515.1,4.73598505]
[1751776111445,0.002,2515.4,2515.1,4.73598505]
[1751776111651,7.986,2515.3,2515.1,4.73598505]
[1751776113672,7.986,2515.3,2515.1,0.76]
[1751776114375,7.986,2515.3,2515.0,4.17545789]
[1751776115583,11.96169754,2515.3,2515.0,0.1994]
[1751776115776,10.0,2515.2,2515.0,0.1994]
[1751776117444,7.986,2515.1,2515.0,0.1994]
[1751776118646,7.986,2515.1,2515.0,0.001]
[1751776118848,8.7726,2515.1,2515.0,0.001]
[1751776119947,22.74858505,2515.1,2515.0,0.001]
[1751776120445,18.7726,2515.1,2515.0,0.001]
[1751776125890,17.986,2515.1,2515.0,0.001]
[1751776138903,10.0,2515.1,2515.0,0.001]
[1751776139208,17.986,2515.1,2515.0,0.001]
[1751776147082,17.985,2515.1,2515.0,3.97714314]
[1751776147284,17.985,2515.1,2515.0,0.001]
[1751776155618,10.0,2515.1,2515.0,0.001]
[1751776155790,17.985,2515.1,2515.0,0.001]
[1751776158329,17.985,2515.1,2515.0,3.97714314]
[1751776158519,17.985,2515.1,2515.0,0.001]
[1751776158727,3.97752327,2515.4,2515.1,3.97588924]
[1751776158728,0.002,2515.4,2515.1,3.97588924]
[1751776158930,7.985,2515.3,2515.1,3.97588924]
[1751776159796,7.985,2515.3,2515.0,4.21521863]
[1751776160216,7.985,2515.3,2515.0,4.1754572]
[1751776166729,7.985,2515.3,2515.0,0.1994]
[1751776167512,9.70054598,2515.4,2515.0,0.1994]
[1751776167726,18.7706,2515.3,2515.0,0.1994]
[1751776170009,18.7706,2515.3,2515.0,4.17553963]
[1751776175832,17.984,2515.3,2515.0,4.17553963]
[1751776178229,10.2004,2515.4,2515.0,4.17553963]
[1751776178435,7.984,2515.3,2515.0,4.17553963]
[1751776186313,7.984,2515.3,2515.0,0.1994]
[1751776187846,7.984,2515.3,2515.0,4.17552602]
[1751776195448,10.2004,2515.4,2515.0,4.17552602]
[1751776195650,7.983,2515.3,2515.0,4.17545285]
[1751776199664,7.983,2515.2,2515.1,3.97597489]
[1751776200366,10.2004,2515.4,2515.2,3.97581983]
[1751776200367,0.2004,2515.4,2515.2,3.97581983]
[1751776200666,17.983,2515.3,2515.1,4.79350366]
[1751776204465,17.983,2515.3,2515.1,0.8176]
[1751776205642,17.983,2515.3,2515.1,4.7935752]
[1751776208973,10.0,2515.3,2515.1,4.7935752]
[1751776209132,10.0,2515.3,2515.2,3.97582697]
[1751776209338,0.2004,2515.4,2515.3,3.9756689]
[1751776209640,10.002,2515.4,2515.3,3.9756689]
[1751776209840,17.985,2515.4,2515.3,3.9756689]
[1751776210850,10.002,2515.4,2515.3,3.9756689]
[1751776211052,17.985,2515.4,2515.3,3.9756689]
[1751776211444,17.985,2515.4,2515.3,4.7696689]
[1751776216067,10.002,2515.4,2515.3,4.7696689]
[1751776216247,17.984,2515.4,2515.3,4.7696689]
[1751776216572,7.984,2515.4,2515.3,4.7696689]
[1751776226985,7.984,2515.4,2515.3,0.794]
[1751776229885,7.984,2515.4,2515.2,4.17413745]
[1751776230093,7.984,2515.4,2515.2,5.06931299]
[1751776231685,7.984,2515.4,2515.3,3.9756689]
[1751776232285,7.984,2515.4,2515.2,5.06931225]
[1751776234098,7.984,2515.4,2515.3,3.9756689]
[1751776235596,7.984,2515.4,2515.2,5.06931946]
[1751776237501,7.984,2515.4,2515.3,3.9756689]
[1751776237866,0.002,2515.4,2515.3,3.9756689]
[1751776243600,0.002,2515.4,2515.3,5.63182828]
[1751776243776,0.002,2515.4,2515.3,5.67158496]
[1751776244171,0.002,2515.4,2515.3,11.1961915]
[1751776244399,0.002,2515.4,2515.3,11.15643482]
[1751776246900,0.002,2515.4,2515.3,5.63182828]
[1751776247102,0.002,2515.4,2515.3,5.67158496]
[1751776266313,0.002,2515.4,2515.3,5.63182828]
[1751776267419,0.002,2515.4,2515.3,5.67158496]
[1751776267597,0.002,2515.4,2515.3,11.15643482]
[1751776270426,1e-08,2515.4,2515.3,11.15643482]
[1751776270931,1e-08,2515.4,2515.3,5.63182828]
[1751776271132,1e-08,2515.4,2515.3,5.67158496]
[1751776272501,1e-08,2515.4,2515.3,6.18182828]
[1751776276533,1e-08,2515.4,2515.3,10.93182828]
[1751776277535,1e-08,2515.4,2515.3,10.93282828]
[1751776281133,1e-08,2515.4,2515.3,10.38282828]
[1751776281341,1e-08,2515.4,2515.3,19.52882828]
[1751776281500,1e-08,2515.4,2515.3,9.62182828]
[1751776281835,1e-08,2515.4,2515.3,19.52882828]
[1751776282433,1e-08,2515.4,2515.3,14.77882828]
[1751776283944,1e-08,2515.4,2515.3,20.30343482]
[1751776284244,1e-08,2515.4,2515.3,21.07483482]
[1751776288542,1e-08,2515.4,2515.3,14.77882828]
[1751776291952,0.78660001,2515.4,2515.3,4.87182828]
[1751776292453,0.78660001,2515.4,2515.3,3.9766689]
[1751776305255,1e-08,2515.4,2515.3,3.9766689]
[1751776305638,1e-08,2515.4,2515.3,9.54103212]
[1751776305834,1e-08,2515.4,2515.3,10.25457544]
[1751776308055,1e-08,2515.4,2515.3,18.23557544]
[1751776308260,1e-08,2515.4,2515.3,20.95165548]
[1751776309760,1e-08,2515.4,2515.3,15.42704894]
[1751776313263,1e-08,2515.4,2515.3,6.69274894]
[1751776313570,1e-08,2515.4,2515.3,3.9766689]
[1751776314138,1e-08,2515.4,2515.3,4.7312689]
[1751776314338,1e-08,2515.4,2515.3,4.77102558]
[1751776314752,1e-08,2515.4,2515.3,4.7312689]
[1751776319169,1e-08,2515.4,2515.3,3.9766689]
[1751776319334,1e-08,2515.4,2515.3,5.26685828]
[1751776329080,1e-08,2515.4,2515.3,5.30661496]
[1751776331180,1e-08,2515.4,2515.3,5.26685828]
[1751776332554,1e-08,2515.4,2515.3,5.30661496]
[1751776332755,1e-08,2515.4,2515.3,5.26685828]
[1751776334160,1e-08,2515.4,2515.3,3.9766689]
[1751776337290,0.75010001,2515.4,2515.3,0.001]
[1751776341597,14.72561086,2515.4,2515.3,0.001]
[1751776341769,10.94850001,2515.4,2515.3,0.001]
[1751776343199,18.93750001,2515.4,2515.3,0.001]
[1751776344073,21.98788282,2515.4,2515.3,0.001]
[1751776346299,25.96339367,2515.4,2515.3,0.001]
[1751776347800,33.355903,2515.4,2515.3,0.001]
[1751776350875,33.905903,2515.4,2515.3,0.001]
[1751776370895,17.77599367,2515.4,2515.3,0.001]
[1751776371215,26.94889367,2515.4,2515.3,0.001]
[1751776373807,26.94989367,2515.4,2515.3,0.001]
[1751776379992,34.540803,2515.4,2515.3,0.001]
[1751776381001,35.321603,2515.4,2515.3,0.001]
[1751776381623,36.35045143,2515.4,2515.3,1e-08]
[1751776381824,3.97582697,2515.2,2515.1,0.001]
[1751776382001,23.75647975,2515.2,2515.1,0.001]
[1751776382207,15.30678505,2515.1,2515.0,1e-08]
[1751776382395,23.09609438,2515.1,2515.0,1e-08]
[1751776386115,22.54609438,2515.1,2515.0,1e-08]
[1751776386320,32.47209438,2515.1,2515.0,1e-08]
[1751776386519,35.52247719,2515.1,2515.0,1e-08]
[1751776387039,25.59647719,2515.1,2515.0,1e-08]
[1751776387240,35.52347719,2515.1,2515.0,1e-08]
[1751776401829,36.61294511,2515.1,2515.0,1e-08]
[1751776402029,36.55232562,2515.1,2515.0,1e-08]
[1751776402659,36.07347719,2515.1,2515.0,1e-08]
[1751776406357,15.28334314,2515.0,2514.9,1e-08]
[1751776406532,24.29619592,2515.0,2514.9,1e-08]
[1751776406732,24.77504435,2515.0,2514.9,1e-08]
[1751776407129,3.97693378,2514.5,2514.4,0.0431287]
[1751776407335,29.57084311,2514.5,2514.4,0.0431287]
[1751776407533,34.55622592,2514.5,2514.4,0.0431287]
[1751776411733,35.34282592,2514.5,2514.4,0.0431287]
[1751776413654,35.34182592,2514.5,2514.4,0.0431287]
[1751776416362,21.56784311,2514.5,2514.4,0.0431287]
[1751776416672,31.50384311,2514.5,2514.4,0.0431287]
[1751776418035,21.56784311,2514.5,2514.4,0.0431287]
[1751776418262,31.50384311,2514.5,2514.4,0.0431287]
[1751776419872,23.91193378,2514.5,2514.4,0.0431287]
[1751776422571,23.91193378,2514.5,2514.4,0.0431287]
[1751776427672,13.97693378,2514.5,2514.4,0.0431287]
[1751776427878,10.0,2514.5,2514.4,0.8060287]
[1751776428099,18.001,2514.5,2514.4,0.8060287]
[1751776429685,10.0,2514.5,2514.4,0.8060287]
[1751776429883,18.0,2514.5,2514.4,5.26246375]
[1751776430049,18.0,2514.5,2514.4,1.2853718]
[1751776430255,10.0,2514.5,2514.4,0.8070287]
[1751776430453,18.0,2514.5,2514.4,0.8070287]
[1751776431055,18.0,2514.5,2514.4,4.78412065]
[1751776431777,10.0,2514.5,2514.4,4.78412065]
[1751776431972,3.97838708,2514.9,2514.4,4.78412065]
[1751776431973,10.0,2514.8,2514.6,0.8146]
[1751776432179,17.999,2514.7,2514.6,0.8146]
[1751776436083,10.0,2514.7,2514.6,0.8146]
[1751776436380,17.998,2514.7,2514.6,0.8146]
[1751776436564,10.0,2514.7,2514.6,4.79137563]
[1751776436762,17.998,2514.7,2514.6,0.8146]
[1751776439486,21.97461748,2514.7,2514.6,0.8146]
[1751776440179,17.998,2514.7,2514.6,0.8146]
[1751776441288,21.97461748,2514.7,2514.6,0.8146]
[1751776442902,17.998,2514.7,2514.6,0.8146]
[1751776447100,21.97461748,2514.7,2514.6,0.8146]
[1751776447265,10.0,2514.6,2514.4,0.8687287]
[1751776447466,7.996,2514.5,2514.4,0.8687287]
[1751776457670,7.996,2514.5,2514.4,0.0441287]
[1751776458599,11.97293378,2514.5,2514.4,0.0441287]
[1751776459795,7.996,2514.5,2514.4,0.0441287]
[1751776462320,11.97293378,2514.5,2514.4,0.0441287]
[1751776463023,7.996,2514.5,2514.4,0.0441287]
[1751776464616,11.97293378,2514.5,2514.4,0.0441287]
[1751776464815,7.996,2514.5,2514.4,0.0441287]
[1751776469833,11.97293378,2514.5,2514.4,0.0441287]
[1751776470011,23.5877301,2514.5,2514.4,0.0441287]
[1751776470411,19.61079632,2514.5,2514.4,0.0441287]
[1751776471225,17.996,2514.5,2514.4,0.0441287]
[1751776480239,21.97293378,2514.5,2514.4,0.0441287]
[1751776480741,17.996,2514.5,2514.4,0.0441287]
[1751776482121,10.0,2514.5,2514.4,0.0441287]
[1751776482342,0.002,2514.9,2514.5,3.97689699]
[1751776482639,8.1874,2514.8,2514.5,3.97689699]
[1751776484431,8.1874,2514.8,2514.4,4.79853254]
[1751776485925,10.0,2514.6,2514.4,4.79853254]
[1751776486126,7.989,2514.5,2514.4,4.79853254]
[1751776486847,0.1984,2514.8,2514.5,0.7774]
[1751776487021,0.002,2514.9,2514.8,0.7774]
[1751776487216,7.991,2514.9,2514.8,0.7774]
[1751776491165,0.002,2514.9,2514.8,4.75385936]
[1751776491664,7.991,2514.9,2514.8,4.99202395]
[1751776491859,7.991,2514.9,2514.8,5.84912068]
[1751776492224,0.002,2514.9,2514.8,5.84912068]
[1751776492558,0.002,2514.9,2514.8,5.88888527]
[1751776501385,0.002,2514.9,2514.8,5.84912068]
[1751776508300,0.002,2514.9,2514.8,5.88888527]
[1751776517004,0.002,2514.9,2514.8,5.88988527]
[1751776528791,7.98400001,2515.4,2515.3,3.9756689]
[1751776529179,7.98400001,2515.4,2515.3,4.1740689]
[1751776530313,1e-08,2515.4,2515.3,4.1740689]
[1751776530684,7.98400001,2515.4,2515.3,4.1740689]
[1751776534738,8.75820001,2515.4,2515.3,4.1740689]
[1751776543932,7.98400001,2515.4,2515.3,4.1740689]
[1751776544136,1e-08,2515.4,2515.3,4.1740689]
[1751776544341,7.98400001,2515.4,2515.3,4.1740689]
[1751776556545,1e-08,2515.4,2515.3,4.1740689]
[1751776556748,1e-08,2515.4,2515.3,5.77945798]
[1751776556931,7.98300001,2515.4,2515.3,5.77945798]
[1751776557250,1e-08,2515.4,2515.3,5.77945798]
[1751776557451,7.98300001,2515.4,2515.3,5.77945798]